Cogmind - Beta 10.2 @@@ ROGUE MODE // 2021.01.26 @ 20:00:32 Player: Gadabout Result: Destroyed by S-43 Plague with Heavy Machine Gun Performance ------------- Evolutions (9) 4500 Regions Visited (14) 2800 Robots Destroyed (16) 80 Value Destroyed (450) 450 Prototype IDs (21) 420 Alien Tech Used (0) 0 Bonus (679) 679 TOTAL SCORE: 8929 Bonus ------- Pacifist 270 High Alert Combat Kills 10 Follower Combat Kills 99 Aligned with FarCom 300 Cogmind --------- Core Integrity 0/1600 Matter 201/300 Energy 100/100 System Corruption 2% Temperature Cool (0) Movement Core (50) Location -1/Access Parts ------- > --- POWER (2) -------- (None) > --- PROPULSION (9) --- (None) > --- UTILITY (12) ----- (None) > --- WEAPON (2) ------- (None) > --- INVENTORY (4) ---- Matter Neutralizer Peak State ------------ > --- POWER ------------ (None) > --- PROPULSION ------- Nuclear Pulse Array Nuclear Pulse Array Impulse Thruster Field Propulsion Array > --- UTILITY ---------- Advanced Signal Interpreter Improved Terrain Scanner Advanced Terrain Scan Processor 0b10 Decoder Chip [Looter] 0b10 Alert Chip Hacking Suite Hacking Suite Hacking Suite > --- WEAPON ----------- Cooled Plasma Rifle > --- INVENTORY -------- Improved Transmission Jammer Advanced ECM Suite System Shield Matter Neutralizer [Rating: 83] Favorites ----------- Power Light Ion Engine Engine Light Ion Engine Power Core Neutrino Core Reactor Particle Reactor Propulsion Cesium-ion Thruster Leg Aluminum Leg Wheel Wheel Flight Unit Cesium-ion Thruster Utility Hacking Suite Device Improved Terrain Scanner Storage Large Storage Unit Processor 0b10 Alert Chip Hackware Hacking Suite Protection Improved Medium Armor Plating Weapon Light Assault Rifle Energy Gun Improved EM Shotgun Energy Cannon Phase Cannon Ballistic Gun Light Assault Rifle Ballistic Cannon Assault Cannon Launcher Grenade Launcher Special Weapon Stasis Beam Build | -11 -10 -10 -10 -9 -8 -7 -6 -5 -5 -5 -4 -3 -2 -1 ------- Run | Scr Mat Min Exi Min Mat Fac Fac Fac Upp Upp Fac Res Res Acc Slots Evolved 18 | . . . . . 4 2 2 2 . . 2 2 2 2 Power 1 | . . . . . . . . . . . 1 . . . Propulsion 7 | . . . . . 1 . 1 2 . . 1 . 1 1 Utility 10 | . . . . . 3 2 1 . . . . 2 1 1 Weapon . | . . . . . . . . . . . . . . . Parts Attached 91 | 6 1 2 3 3 19 6 8 13 4 . 4 11 3 8 Power 13 | 1 . . . 1 2 1 1 . 1 . . 2 2 2 Engine 6 | 1 . . . 1 2 1 1 . . . . . . . Core 1 | . . . . . . . . . 1 . . . . . Reactor 6 | . . . . . . . . . . . . 2 2 2 Propulsion 24 | 2 . . . . 6 . . 6 2 . 3 4 . 1 Treads . | . . . . . . . . . . . . . . . Leg 3 | . . . . . 3 . . . . . . . . . Wheel 4 | 2 . . . . . . . . . . . 2 . . Hover . | . . . . . . . . . . . . . . . Flight 17 | . . . . . 3 . . 6 2 . 3 2 . 1 Utility 32 | 1 1 2 2 . 5 5 1 6 1 . . 3 1 4 Device 12 | . 1 1 . . 4 2 1 1 . . . 1 . 1 Storage 3 | 1 . 1 1 . . . . . . . . . . . Processor 12 | . . . 1 . 1 1 . 3 1 . . 1 1 3 Hackware 4 | . . . . . . 2 . 2 . . . . . . Protection 1 | . . . . . . . . . . . . 1 . . Artifact . | . . . . . . . . . . . . . . . Weapon 22 | 2 . . 1 2 6 . 6 1 . . 1 2 . 1 Energy Gun 3 | . . . . . 1 . . . . . 1 . . 1 Energy Cannon 3 | . . . 1 . . . 1 . . . . 1 . . Ballistic Gun 10 | 2 . . . 1 3 . 4 . . . . . . . Ballistic Cannon 2 | . . . . . 1 . 1 . . . . . . . Launcher 3 | . . . . 1 1 . . 1 . . . . . . Special Weapon 1 | . . . . . . . . . . . . 1 . . Impact Weapon . | . . . . . . . . . . . . . . . Slashing Weapon . | . . . . . . . . . . . . . . . Piercing Weapon . | . . . . . . . . . . . . . . . Special Melee Weapon . | . . . . . . . . . . . . . . . Unidentified Prototypes 5 | . . . 2 . 1 . . . . . 1 . 1 . Parts Lost 25 | . . . . . 5 . 1 3 6 . 2 3 . 5 Power 6 | . . . . . 1 . . . 2 . . 1 . 2 Propulsion 9 | . . . . . 2 . . 1 3 . 1 1 . 1 Utility 5 | . . . . . 1 . . 2 . . . 1 . 1 Weapon 5 | . . . . . 1 . 1 . 1 . 1 . . 1 Highest Loss Streak 6 | . . . . . 3 . 1 2 6 . 2 3 . 2 Average Slot Usage (%) 70 | . 87 98 91 95 90 95 83 80 69 58 58 10 . 12 Engine 6 | . 14 14 14 14 6 7 6 5 2 . . 1 . . Leg 1 | . . . . . 7 . . . . . . . . . Wheel 9 | . 28 28 28 28 8 . . . . . . . . . Flight 9 | . . . . . 5 23 20 27 18 11 16 1 . 2 Device 9 | . 2 12 5 . 18 25 20 17 5 5 4 . . . Storage 5 | . 14 14 14 14 7 . . . . . . . . . Processor 12 | . . . 8 14 18 16 13 16 19 23 19 1 . 8 Hackware 4 | . . . . . . 7 13 11 17 17 14 . . . Energy Gun 1 | . . . . . 5 . . . . . 2 . . . Ballistic Gun 9 | . 28 28 19 21 8 15 10 . . . . . . . Naked Turns 357 | . . . . . . . . . . . 14 47 201 95 Heaviest Build 31 | 9 10 14 22 26 31 16 18 18 18 1 6 20 . 26 Greatest Support 55 | 20 20 20 20 20 30 18 18 55 52 6 26 20 3 27 Greatest Overweight (x) 9 | . . . 1 1 9 . . . . . 1 5 . 4 Average Overweight (x) . | . . . . . . . . . . . . . . . Largest Inventory Capacity 10 | 6 6 8 10 10 10 4 4 4 4 4 4 4 4 4 Average Capacity 6 | 4 6 6 9 10 9 4 4 4 4 4 4 4 4 4 Most Carried 10 | 4 5 7 10 10 10 4 4 4 3 1 4 4 4 4 Average Carried 5 | 2 4 5 9 9 7 4 4 3 1 1 3 3 3 1 Final Capacity 10 | 6 6 8 10 10 4 4 4 4 4 4 4 4 4 4 Final Carried 10 | 4 5 7 10 10 4 4 4 3 1 1 3 4 4 1 Class Distribution -------------------- 48% | Mutant 25% | Hacker-Scout 13% | Infiltrator-Scout 9% | Skirmisher 3% | Infiltrator-Skirmisher Dominant Class ---------------- Mutant | -10/Materials Mutant | -10/Mines Mutant | -10/Exiles Mutant | -9/Mines Skirmisher | -8/Materials Infiltrator-Scout | -7/Factory Hacker-Scout | -6/Factory Hacker-Scout | -5/Factory Hacker-Scout | -5/Upper Caves Hacker-Scout | -5/Upper Caves Hacker-Scout | -4/Factory Mutant | -3/Research Mutant | -2/Research Mutant | -1/Access Resources | -11 -10 -10 -10 -9 -8 -7 -6 -5 -5 -5 -4 -3 -2 -1 ----------- Run | Scr Mat Min Exi Min Mat Fac Fac Fac Upp Upp Fac Res Res Acc Matter Collected 1153 | 250 . . 50 140 257 . . 90 210 48 68 . . 40 Remotely . | . . . . . . . . . . . . . . . Salvage Created 498 | . . . . 9 404 . . 22 . . . 23 . 40 Parts 28 | . . . . . 19 . . 3 . . . 4 . 2 Haulers Intercepted 1 | . . . . . 1 . . . . . . . . . Recyclers Shooed . | . . . . . . . . . . . . . . . Parts Field Recycled . | . . . . . . . . . . . . . . . Retrieved Matter . | . . . . . . . . . . . . . . . Parts Self-Destructed . | . . . . . . . . . . . . . . . Prevented . | . . . . . . . . . . . . . . . Kills | -11 -10 -10 -10 -9 -8 -7 -6 -5 -5 -5 -4 -3 -2 -1 ------- Run | Scr Mat Min Exi Min Mat Fac Fac Fac Upp Upp Fac Res Res Acc Combat Hostiles Destroyed 13 | . . . . 2 10 . . . . . . . . 1 Melee 1 | . . . . . . . . . . . . . . 1 Guns 2 | . . . . . 2 . . . . . . . . . Cannons 2 | . . . . . 2 . . . . . . . . . AOE 8 | . . . . 2 6 . . . . . . . . . Classes Destroyed 8 | . . . . 1 6 . . . . . . 1 . . Worker 1 | . . . . . . . . . . . . 1 . . Builder 2 | . . . . . 1 . . 1 . . . . . . Hauler 1 | . . . . . 1 . . . . . . . . . Recycler 1 | . . . . . 1 . . . . . . . . . Swarmer 4 | . . . . . 3 . . . . . . . . 1 Grunt 5 | . . . . . 5 . . . . . . . . . Sentry 2 | . . . . . 2 . . . . . . . . . Assembled 2 | . . . . 2 . . . . . . . . . . Best Kill Streak 8 | . . . . 2 8 . . 1 . . . 1 . 1 Combat Bots Only 6 | . . . . 2 6 . . . . . . . . 1 Max Kills in Single Turn 3 | . . . . 1 3 . . 1 . . . 1 . 1 Gunslinging . | . . . . . . . . . . . . . . . Exploded 2 | . . . . 1 2 . . . . . . . . . Melee 1 | . . . . . . . . . . . . . . 1 Uniques/NPCs Destroyed . | . . . . . . . . . . . . . . . Combat | -11 -10 -10 -10 -9 -8 -7 -6 -5 -5 -5 -4 -3 -2 -1 -------- Run | Scr Mat Min Exi Min Mat Fac Fac Fac Upp Upp Fac Res Res Acc Damage Taken 5975 | . . . . 69 671 . 59 434 200 . 496 1002 1021 2023 Core 4056 | . . . . 27 177 . 24 109 32 . 297 763 1019 1608 Absorbed by Shields . | . . . . . . . . . . . . . . . Core Remaining (%) 75 | 100 . . . 89 67 100 97 . . 85 74 41 29 . Volleys Fired 45 | . . . . 4 38 . . 2 1 . . . . . Largest 2 | . . . . 1 2 . . 1 1 . . . . . Hottest 64 | . . . . 30 64 . . 30 30 . . . . . Shots Fired 50 | . . . . 4 43 . . 2 1 . . . . . Gun 25 | . . . . . 25 . . . . . . . . . Cannon 13 | . . . . . 13 . . . . . . . . . Launcher 12 | . . . . 4 5 . . 2 1 . . . . . Special . | . . . . . . . . . . . . . . . Kinetic 38 | . . . . . 38 . . . . . . . . . Thermal . | . . . . . . . . . . . . . . . Explosive 12 | . . . . 4 5 . . 2 1 . . . . . Electromagnetic . | . . . . . . . . . . . . . . . Robot Hit Streak 22 | . . . . 2 22 . . 1 . . . . . . Robot Miss Streak 2 | . . . . 2 1 . . 1 . . . . . . Penetration Max . | . . . . . . . . . . . . . . . Secondary Targets . | . . . . . . . . . . . . . . . Shots Hit Robots 41 | . . . . 2 38 . . 1 . . . . . . Core Hits 39 | . . . . 2 25 . . 4 . . . 1 3 4 Critical Hits . | . . . . . . . . . . . . . . . Critical Kills . | . . . . . . . . . . . . . . . Critical Parts Destroyed . | . . . . . . . . . . . . . . . Melee Attacks . | . . . . . . . . . . . . . . . Impact . | . . . . . . . . . . . . . . . Slashing . | . . . . . . . . . . . . . . . Piercing . | . . . . . . . . . . . . . . . Sneak Attacks . | . . . . . . . . . . . . . . . Combat Hostiles . | . . . . . . . . . . . . . . . Follow-up Attacks . | . . . . . . . . . . . . . . . Damage Inflicted 1450 | . . . . 125 1135 . . 92 . . . 12 37 49 Guns 284 | . . . . . 284 . . . . . . . . . Cannons 306 | . . . . . 306 . . . . . . . . . Explosions 747 | . . . . 110 545 . . 92 . . . . . . Melee . | . . . . . . . . . . . . . . . Ramming 113 | . . . . 15 . . . . . . . 12 37 49 Kinetic 590 | . . . . . 590 . . . . . . . . . Thermal . | . . . . . . . . . . . . . . . Explosive 747 | . . . . 110 545 . . 92 . . . . . . Electromagnetic . | . . . . . . . . . . . . . . . Impact . | . . . . . . . . . . . . . . . Slashing . | . . . . . . . . . . . . . . . Piercing . | . . . . . . . . . . . . . . . Highest Corruption 6 | . . . . . . . . 1 1 1 2 . 6 2 Average Corruption 1 | . . . . . . . . 1 1 1 1 . 4 1 Corruption Purged . | . . . . . . . . . . . . . . . Effects 6 | . . . . . . . . 2 . 1 . . 2 1 Matter Fused 1 | . . . . . . . . . . . . . 1 . Energy Discharges 3 | . . . . . . . . . . 1 . . 1 1 Data Loss (minor) 1 | . . . . . . . . 1 . . . . . . Targeting Errors 1 | . . . . . . . . 1 . . . . . . Overload Shots . | . . . . . . . . . . . . . . . Overflow Damage 25 | . . . . 14 11 . . . . . . . . . Projectiles . | . . . . . . . . . . . . . . . Explosions 25 | . . . . 14 11 . . . . . . . . . Melee . | . . . . . . . . . . . . . . . Knockbacks . | . . . . . . . . . . . . . . . Impact . | . . . . . . . . . . . . . . . Kinetic . | . . . . . . . . . . . . . . . Secondary . | . . . . . . . . . . . . . . . Self-Inflicted Damage 113 | . . . . 19 49 . . . . . . 6 16 23 Shots 4 | . . . . 1 3 . . . . . . . . . Rammed 21 | . . . . 1 . . . . . . . 1 9 10 Targets Rammed 21 | . . . . 1 . . . . . . . 1 9 10 Kicked . | . . . . . . . . . . . . . . . Crushed . | . . . . . . . . . . . . . . . Highest Temperature 7 | . . . . . 7 . . . . . . . . . Average Temperature 4 | . . . . . 4 . . . . . . . . . Received Heat Transfer 359 | . . . . 20 252 . 6 9 18 . . 27 9 18 Siege Activations . | . . . . . . . . . . . . . . . Robots Corrupted . | . . . . . . . . . . . . . . . Combat Hostiles . | . . . . . . . . . . . . . . . Parts Fried . | . . . . . . . . . . . . . . . Impact Corruptions . | . . . . . . . . . . . . . . . Robots Melted . | . . . . . . . . . . . . . . . Combat Hostiles . | . . . . . . . . . . . . . . . Parts Melted . | . . . . . . . . . . . . . . . Heat Transferred . | . . . . . . . . . . . . . . . Parts Sabotaged . | . . . . . . . . . . . . . . . Parts Stolen . | . . . . . . . . . . . . . . . Parts Stripped . | . . . . . . . . . . . . . . . Power Chain Reactions . | . . . . . . . . . . . . . . . Missiles Intercepted . | . . . . . . . . . . . . . . . Alert | -11 -10 -10 -10 -9 -8 -7 -6 -5 -5 -5 -4 -3 -2 -1 ------- Run | Scr Mat Min Exi Min Mat Fac Fac Fac Upp Upp Fac Res Res Acc Peak Influence 553 | . 90 34 . 62 260 226 426 203 . . 139 326 348 553 Initial 208 | . . 34 . . . 118 . 203 . . 124 69 183 208 Average 107 | . 22 34 . 11 61 144 119 70 . . 129 140 243 339 Maximum Alert Level 2 | . . . . . 1 1 2 1 . . . 1 1 2 Low Security (%) 85 | 100 100 100 . 100 97 78 72 97 . . 100 88 54 . Level 1 11 | . . . . . 2 21 . 2 . . . 11 45 73 Level 2 2 | . . . . . . . 27 . . . . . . 26 Level 3 . | . . . . . . . . . . . . . . . Level 4 . | . . . . . . . . . . . . . . . Level 5 . | . . . . . . . . . . . . . . . High Security . | . . . . . . . . . . . . . . . Max Security . | . . . . . . . . . . . . . . . Squads Dispatched 19 | . . . . . 4 3 . 8 . . 1 2 . 1 Investigation 10 | . . . . . 1 2 . 5 . . . 1 . 1 Extermination 3 | . . . . . . . . 1 . . 1 1 . . Reinforcement 6 | . . . . . 3 1 . 2 . . . . . . Assault . | . . . . . . . . . . . . . . . Garrison . | . . . . . . . . . . . . . . . Intercept . | . . . . . . . . . . . . . . . Construction Impeded 1 | . . . . . 1 . . . . . . . . . Haulers Reinforced . | . . . . . . . . . . . . . . . Stealth | -11 -10 -10 -10 -9 -8 -7 -6 -5 -5 -5 -4 -3 -2 -1 --------- Run | Scr Mat Min Exi Min Mat Fac Fac Fac Upp Upp Fac Res Res Acc Distress Signals 6 | . 2 . . . . . . 1 . . . . 1 2 Communications Jammed . | . . . . . . . . . . . . . . . Distress Signals . | . . . . . . . . . . . . . . . Times Spotted 152 | . 4 . . 12 23 3 1 22 11 . 6 27 12 31 Peak Tracking Total 16 | . 3 . . 9 7 2 1 9 8 . 6 16 11 12 Tactical Retreats 29 | . 2 . . . 3 1 . 4 5 . 1 3 2 8 Traps | -11 -10 -10 -10 -9 -8 -7 -6 -5 -5 -5 -4 -3 -2 -1 ------- Run | Scr Mat Min Exi Min Mat Fac Fac Fac Upp Upp Fac Res Res Acc Traps Triggered 5 | . . . . . . 3 . . . . . 1 . 1 Indirectly . | . . . . . . . . . . . . . . . Trap Hack Attempts . | . . . . . . . . . . . . . . . Triggered . | . . . . . . . . . . . . . . . Disarmed . | . . . . . . . . . . . . . . . Reprogrammed 8 | . . . . . . 8 . . . . . . . . Reused 2 | . . . . . . 2 . . . . . . . . Traps Extracted . | . . . . . . . . . . . . . . . Installed . | . . . . . . . . . . . . . . . Triggered 2 | . . . . . . 2 . . . . . . . . Machines | -11 -10 -10 -10 -9 -8 -7 -6 -5 -5 -5 -4 -3 -2 -1 ---------- Run | Scr Mat Min Exi Min Mat Fac Fac Fac Upp Upp Fac Res Res Acc Machines Disabled 3 | . . . . . . . . 3 . . . . . . Max in Single Turn 3 | . . . . . . . . 3 . . . . . . Machines Sabotaged . | . . . . . . . . . . . . . . . Garrisons Compromised . | . . . . . . . . . . . . . . . Overloaded Fab Kills . | . . . . . . . . . . . . . . . Fab Network Shutdowns 1 | . . . . . . . 1 . . . . . . . Hacking | -11 -10 -10 -10 -9 -8 -7 -6 -5 -5 -5 -4 -3 -2 -1 --------- Run | Scr Mat Min Exi Min Mat Fac Fac Fac Upp Upp Fac Res Res Acc Machines Accessed 41 | . 2 . 4 . 8 7 3 8 2 . 2 4 . 1 Terminals 27 | . 2 . . . 6 5 1 6 1 . 2 3 . 1 Fabricators 3 | . . . . . . 1 1 1 . . . . . . Repair Stations 2 | . . . . . 1 . . . . . . 1 . . Recycling Units 3 | . . . . . 1 1 . 1 . . . . . . Scanalyzers 1 | . . . . . . . 1 . . . . . . . Garrison Access . | . . . . . . . . . . . . . . . Total Hacks 157 | . 4 . 49 . 31 29 4 20 5 . 6 7 . 2 Successful 122 | . 3 . 49 . 19 24 3 12 5 . 2 5 . . Failed 35 | . 1 . . . 12 5 1 8 . . 4 2 . 2 Catastrophic 7 | . . . . . 3 . . 3 . . . . . 1 Database Lockouts . | . . . . . . . . . . . . . . . Manual 37 | . 3 . 2 . 12 12 1 7 . . . . . . Terminals 92 | . 4 . . . 26 25 2 17 4 . 6 6 . 2 Fabricators 5 | . . . . . . 2 1 2 . . . . . . Repair Stations 3 | . . . . . 2 . . . . . . 1 . . Recycling Units 6 | . . . . . 3 2 . 1 . . . . . . Scanalyzers 1 | . . . . . . . 1 . . . . . . . Garrison Access . | . . . . . . . . . . . . . . . Terminal Hacks 92 | . 1 . 49 . 8 15 1 7 5 . 2 4 . . Record 57 | . . . 49 . . . . 1 4 . . 3 . . Part Schematic 2 | . . . . . 1 . . 1 . . . . . . Prototype ID Bank 8 | . 1 . . . 3 2 1 . . . 1 . . . Open Door 1 | . . . . . . . . . 1 . . . . . Emergency Access Points 2 | . . . . . . . . 1 . . 1 . . . Machine Index 2 | . . . . . 1 1 . . . . . . . . Unreport Threat 2 | . . . . . . 1 . 1 . . . . . . Locate Traps 3 | . . . . . . 2 . 1 . . . . . . Reprogram Traps 3 | . . . . . . 3 . . . . . . . . Surveillance Status 1 | . . . . . . 1 . . . . . . . . Transport Status 1 | . . . . . . 1 . . . . . . . . Recall Investigation 2 | . . . . . 1 1 . . . . . . . . Recall Extermination 1 | . . . . . . . . 1 . . . . . . Recall Reinforcements 1 | . . . . . 1 . . . . . . . . . Recall Assault 1 | . . . . . . . . 1 . . . . . . Hauler Manifests 2 | . . . . . 1 . . . . . . 1 . . Registered Components 1 | . . . . . . 1 . . . . . . . . Zone Layout 2 | . . . . . . 2 . . . . . . . . Fabricator Hacks 5 | . . . . . . 2 1 2 . . . . . . Load Schematic 2 | . . . . . . 1 . 1 . . . . . . Build 3 | . . . . . . 1 1 1 . . . . . . Repair Station Hacks 3 | . . . . . 2 . . . . . . 1 . . Scan Component 1 | . . . . . 1 . . . . . . . . . Repair 1 | . . . . . 1 . . . . . . . . . Refit 1 | . . . . . . . . . . . . 1 . . Recycling Unit Hacks 3 | . . . . . 2 . . 1 . . . . . . Report Inventory 2 | . . . . . 1 . . 1 . . . . . . Retrieve Components 1 | . . . . . 1 . . . . . . . . . Scanalyzer . | . . . . . . . . . . . . . . . Garrison Access Hacks . | . . . . . . . . . . . . . . . Unauthorized Hacks 19 | . 2 . . . 7 7 1 2 . . . . . . Terminals 19 | . 2 . . . 7 7 1 2 . . . . . . Track 1 | . . . . . . 1 . . . . . . . . Assimilate 2 | . . . . . 1 . . 1 . . . . . . Botnet 15 | . 2 . . . 6 5 1 1 . . . . . . Operators 1 | . . . . . . 1 . . . . . . . . Fabricators . | . . . . . . . . . . . . . . . Repair Stations . | . . . . . . . . . . . . . . . Recycling Units . | . . . . . . . . . . . . . . . Scanalyzers . | . . . . . . . . . . . . . . . Garrison Access . | . . . . . . . . . . . . . . . Data Cores Recovered . | . . . . . . . . . . . . . . . Used . | . . . . . . . . . . . . . . . Hacking Detections 32 | . 2 . . . 7 7 2 7 1 . 2 3 . 1 Full Trace Events 11 | . . . . . 2 2 . 5 1 . . . . 1 Feedback Events 2 | . . . . . . . . 2 . . . . . . Corruption 1 | . . . . . . . . 1 . . . . . . Hackware Fried 1 | . . . . . . . . 1 . . . . . . Feedback Blocked . | . . . . . . . . . . . . . . . Robot Schematics Acquired . | . . . . . . . . . . . . . . . Robots Built . | . . . . . . . . . . . . . . . Matter . | . . . . . . . . . . . . . . . Time . | . . . . . . . . . . . . . . . Total Robot Build Rating . | . . . . . . . . . . . . . . . Part Schematics Acquired 2 | . . . . . 1 . . 1 . . . . . . Parts Built 2 | . . . . . . 1 . 1 . . . . . . Matter 482 | . . . . . . 146 190 146 . . . . . . Time 204 | . . . . . . 36 95 73 . . . . . . Total Part Build Rating 6 | . . . . . . 3 . 3 . . . . . . Parts Repaired 1 | . . . . . 1 . . . . . . . . . Time 26 | . . . . . 26 . . . . . . . . . Parts Recycled . | . . . . . . . . . . . . . . . Recycled Matter . | . . . . . . . . . . . . . . . Retrieved Matter . | . . . . . . . . . . . . . . . Retrieved Components 9 | . . . . . 9 . . . . . . . . . Parts Scanalyzed . | . . . . . . . . . . . . . . . Part Schematics Acquired . | . . . . . . . . . . . . . . . Parts Damaged . | . . . . . . . . . . . . . . . Bothacking | -11 -10 -10 -10 -9 -8 -7 -6 -5 -5 -5 -4 -3 -2 -1 ------------ Run | Scr Mat Min Exi Min Mat Fac Fac Fac Upp Upp Fac Res Res Acc Used RIF Installer . | . . . . . . . . . . . . . . . Robots Hacked . | . . . . . . . . . . . . . . . Non-combat . | . . . . . . . . . . . . . . . Combat . | . . . . . . . . . . . . . . . Robot Hacks Applied . | . . . . . . . . . . . . . . . Relay Couplers Released . | . . . . . . . . . . . . . . . Robots Rewired . | . . . . . . . . . . . . . . . Allies Hacked . | . . . . . . . . . . . . . . . Hacks Repelled . | . . . . . . . . . . . . . . . Allies | -11 -10 -10 -10 -9 -8 -7 -6 -5 -5 -5 -4 -3 -2 -1 -------- Run | Scr Mat Min Exi Min Mat Fac Fac Fac Upp Upp Fac Res Res Acc Total Allies 6 | . . . . 5 . . . 1 . . . . . . Largest Group 5 | . . . . 5 . . . 1 . . . . . . Highest-Rated Group 85 | . . . . 85 . . . 26 . . . . . . Highest-Rated Ally 31 | . . . . 31 . . . 26 . . . . . . Total Orders . | . . . . . . . . . . . . . . . Ally Attacks 18 | . . . . 18 . . . . . . . . . . Total Damage 224 | . . . . 224 . . . . . . . . . . Kills 3 | . . . . 3 . . . . . . . . . . Allies Corrupted . | . . . . . . . . . . . . . . . Allies Melted . | . . . . . . . . . . . . . . . Intel | -11 -10 -10 -10 -9 -8 -7 -6 -5 -5 -5 -4 -3 -2 -1 ------- Run | Scr Mat Min Exi Min Mat Fac Fac Fac Upp Upp Fac Res Res Acc Robot Analysis Total . | . . . . . . . . . . . . . . . Derelict Logs Recovered 4 | . . 1 . 2 . . . . 1 . . . . . Drone Launches . | . . . . . . . . . . . . . . . Drone Recoveries . | . . . . . . . . . . . . . . . Decoded 0b10 Intel 7 | . . . . . . . . . . . 7 . . . Items 7 | . . . . . . . . . . . 7 . . . Exploration | -11 -10 -10 -10 -9 -8 -7 -6 -5 -5 -5 -4 -3 -2 -1 ------------- Run | Scr Mat Min Exi Min Mat Fac Fac Fac Upp Upp Fac Res Res Acc Turns Passed 4651 | 55 231 77 475 512 746 400 136 476 284 19 361 381 220 278 Spaces Moved 7202 | 53 266 91 562 566 562 862 353 927 703 46 602 630 401 578 Core 860 | 7 . . . . 12 . . . . . 20 205 401 215 Treads . | . . . . . . . . . . . . . . . Legs 87 | . . . . . 87 . . . . . . . . . Wheels 1747 | 46 266 91 562 566 210 . . . . . . 6 . . Hover . | . . . . . . . . . . . . . . . Flight 4508 | . . . . . 253 862 353 927 703 46 582 419 . 363 Fastest Speed 28 | 50 80 80 80 80 34 34 34 28 31 40 37 40 50 40 Average Speed 52 | 76 80 80 82 86 83 34 34 32 32 40 40 57 50 44 Slowest Speed 500 | 80 80 80 90 90 500 34 34 34 40 40 100 300 50 250 Overloaded Moves . | . . . . . . . . . . . . . . . Propulsion Burnouts . | . . . . . . . . . . . . . . . Robots Hopped 48 | . . . . . 8 6 3 17 4 1 . 6 . 3 Cave-ins Triggered . | . . . . . . . . . . . . . . . Exploration Rate (%) 35 | 4 46 23 93 83 46 23 10 34 83 8 21 23 20 17 Regions Visited 14 Branch Regions 5 Pre-discovered Areas 4 | . . 1 1 1 . . . . 1 . . . . . Known Exits Taken 5 | . . . . . . . . 1 1 1 . 1 1 . Unknown Exits Taken 9 | 1 1 1 1 1 1 1 1 . . . 1 . . . Scrap Searched 5 | . . . . . . . . . 3 2 . . . . Spaces Dug . | . . . . . . . . . . . . . . . Terrain Destroyed 66 | . . . . 35 23 . . . 8 . . . . . Melee . | . . . . . . . . . . . . . . . Projectile . | . . . . . . . . . . . . . . . AOE 66 | . . . . 35 23 . . . 8 . . . . . Terrain Rammed . | . . . . . . . . . . . . . . . Walls Destroyed . | . . . . . . . . . . . . . . . Machines Disabled . | . . . . . . . . . . . . . . . Actions | -11 -10 -10 -10 -9 -8 -7 -6 -5 -5 -5 -4 -3 -2 -1 --------- Run | Scr Mat Min Exi Min Mat Fac Fac Fac Upp Upp Fac Res Res Acc Total 7976 | 64 283 95 573 583 787 961 365 1086 754 44 720 646 420 595 Wait 541 | 2 16 . 3 7 157 42 . 153 50 . 105 . 6 . Move 7099 | 52 265 90 561 565 546 849 346 895 694 43 601 618 401 573 Hop 42 | . . . . . 7 6 3 14 4 1 . 5 . 2 Pick Up 26 | 4 1 1 2 2 9 . . 1 1 . 4 1 . . Fast Attach 54 | 6 1 1 2 . 7 5 7 5 1 . 4 8 2 5 Attach 26 | . . . . 1 10 . . 5 3 . . 3 1 3 Detach 18 | . . 1 1 . 5 1 . 3 . . 1 5 1 . Swap 11 | . . 1 1 2 2 1 1 3 . . . . . . Drop 38 | . . 1 3 1 6 3 8 5 . . 5 5 1 . Fire 45 | . . . . 4 38 . . 2 1 . . . . . Melee . | . . . . . . . . . . . . . . . Ram 20 | . . . . 1 . . . . . . . 1 8 10 Kick . | . . . . . . . . . . . . . . . Crush . | . . . . . . . . . . . . . . . Escape Stasis 56 | . . . . . . 54 . . . . . . . 2 Rewire . | . . . . . . . . . . . . . . . Trap . | . . . . . . . . . . . . . . . Miscellaneous . | . . . . . . . . . . . . . . . Route ------- -11/Scrapyard -10/Materials -10/Mines -10/Exiles -9/Mines (discovered 2 exits: *Mat x2) -8/Materials (discovered 2 exits: *Fac x2) -7/Factory (discovered 3 exits: *Fac / Low x2) -6/Factory -5/Factory -5/Upper Caves -5/Upper Caves -4/Factory -3/Research (discovered 2 exits: *Res x2) -2/Research -1/Access History --------- Turn | Location | Event 6 | -11/Scrapyard | Discovered new exit (range 16) 56 | -11/Scrapyard | Entered Materials 141 | -10/Materials | Discovered new exit (range 9) 287 | -10/Materials | Entered Mines 305 | -10/Mines | Build established: Mutant 309 | -10/Mines | Met a Derelict bent on vengeance 330 | -10/Mines | Learned location of Mines (-9) 361 | -10/Mines | Deemed a non-threat by the Exiles lab entrance 361 | -10/Mines | Discovered new exit (range 5) 364 | -10/Mines | Entered Exiles 387 | -10/Exiles | Met 8R-AWN 401 | -10/Exiles | Met EX-HEX 485 | -10/Exiles | Met EX-BIN 503 | -10/Exiles | Aligned with FarCom system 504 | -10/Exiles | Given EX-Vault access code 545 | -10/Exiles | Opened EX-Vault 550 | -10/Exiles | Found Prototype Processor 557 | -10/Exiles | Found Prototype Energy Cannon 557 | -10/Exiles | Identified Gui. Plasma Cannon 562 | -10/Exiles | Identified 0b10 Alert Chip 582 | -10/Exiles | Warned to stay clear of 0b10 Research branches 608 | -10/Exiles | Met EX-DEC 620 | -10/Exiles | Learned location of Zion (-6) 684 | -10/Exiles | Visited The Gauntlet 824 | -10/Exiles | Discovered new exit (range 14) 839 | -10/Exiles | Left Exiles lab with 0b10 Alert Chip 839 | -10/Exiles | Entered Mines 844 | -9/Mines | Discovered new exit (range 9) 870 | -9/Mines | Assisted by bots powering up and referring to "LRC-V3" 905 | -9/Mines | Learned Materials stockpile data 951 | -9/Mines | Learned location of Storage (-7) 988 | -9/Mines | Found a hidden stash of uninstalled traps 1027 | -9/Mines | Assembled infested the area 1342 | -9/Mines | Discovered new exit (range 10) 1351 | -9/Mines | Entered Materials 1351 | -8/Materials | Evolved 4 slots: Propulsion x1, Utility x3 1639 | -8/Materials | Build established: Skirmisher 1648 | -8/Materials | Repaired Ion Engine 1741 | -8/Materials | Lost 3 parts (2n1u) 2041 | -8/Materials | Discovered new exit (range 15) 2092 | -8/Materials | Discovered new exit (range 7) 2097 | -8/Materials | Entered Factory 2097 | -7/Factory | Evolved 2 slots: Utility x2 2098 | -7/Factory | Identified exit to Lower Caves 2244 | -7/Factory | Build established: Infiltrator-Scout 2365 | -7/Factory | Discovered exit to Lower Caves (range 16) 2397 | -7/Factory | Fabricated Hacking Suite (x1) 2459 | -7/Factory | Discovered new exit (range 16) 2497 | -7/Factory | Entered another Factory area 2497 | -6/Factory | Evolved 2 slots: Propulsion x1, Utility x1 2595 | -6/Factory | Local fabrication network quarantined 2619 | -6/Factory | Discovered new exit (range 15) 2633 | -6/Factory | Entered another Factory area 2633 | -5/Factory | Evolved 2 slots: Propulsion x2 2663 | -5/Factory | Hacking Suite fried by hacking feedback 2816 | -5/Factory | Fabricated Hacking Suite? 2825 | -5/Factory | Spotted B-75 Beast 3108 | -5/Factory | Discovered new exit (range 5) 3109 | -5/Factory | Identified exit to Upper Caves 3109 | -5/Factory | Entered Upper Caves 3130 | -5/Upper Caves | Build established: Hacker-Scout 3157 | -5/Upper Caves | Spotted B-75 Beast 3243 | -5/Upper Caves | Learned location of 1 exit from Proximity Caves 3243 | -5/Upper Caves | Learned location of 1 exit from Research 3243 | -5/Upper Caves | Learned Factory trap positions 3243 | -5/Upper Caves | Learned Research terminal intel 3332 | -5/Upper Caves | Lost 6 parts (2p3n1w) 3332 | -5/Upper Caves | Discovered new exit (range 7) 3383 | -5/Upper Caves | Identified exit to Upper Caves 3393 | -5/Upper Caves | Entered another Upper Caves area 3407 | -5/Upper Caves | Discovered new exit (range 7) 3411 | -5/Upper Caves | Identified exit to Factory 3412 | -5/Upper Caves | Entered Factory 3412 | -4/Factory | Evolved 2 slots: Power x1, Propulsion x1 3413 | -4/Factory | Loaded intel: 119 trap records 3759 | -4/Factory | Released all parts (10) 3766 | -4/Factory | Discovered new exit (range 15) 3773 | -4/Factory | Entered Research 3773 | -3/Research | Evolved 2 slots: Utility x2 3774 | -3/Research | Identified exit to Research 3775 | -3/Research | Loaded intel: 18 terminal locations 4041 | -3/Research | Build established: Mutant 4130 | -3/Research | Lost 3 parts (1p1n1u) 4141 | -3/Research | Released all parts (2) 4147 | -3/Research | Core integrity fell below 50% 4151 | -3/Research | Discovered exit to Research (range 8) 4154 | -3/Research | Entered another Research area 4154 | -2/Research | Evolved 2 slots: Propulsion x1, Utility x1 4287 | -2/Research | Core integrity fell below 50% 4357 | -2/Research | Found Prototype Processor 4357 | -2/Research | Identified Exp. Signal Interpreter 4369 | -2/Research | Discovered new exit (range 11) 4374 | -2/Research | Identified exit to Access 4374 | -2/Research | Entered Access 4374 | -1/Access | Evolved 2 slots: Propulsion x1, Utility x1 4557 | -1/Access | Released all parts (4) 4614 | -1/Access | Core integrity fell below 50% 4634 | -1/Access | Core integrity fell below 20% 4652 | -1/Access | Destroyed by S-43 Plague with Heavy Machine Gun Last Messages --------------- 04504_ U-05 Engineer lays Concrete. 04537_ Acquired Lgt. Quantum Reactor. 04554_ Impulse Thruster Array destroyed. 04555_ S-43 Plague destroyed. 04557_ Lgt. Quantum Reactor destroyed. 04557_ Released Adv. Core Analyzer. 04557_ Released Adv. Terrain Scan Processor. 04557_ Released Exp. Signal Interpreter. 04557_ Released Adv. Signal Interpreter. 04581_ System corrupted: Energy discharge (-35). 04604_ Slammed into P-80 Master. 04611_ Slammed into S-43 Plague. 04611_ S-43 Plague destroyed. [Achievement: Fist Fight] 04612_ Acquired 40 matter. 04612_ Slammed into S-43 Plague. 04617_ Destabilizing: Core damaged (-64). 04618_ Slammed into S-43 Plague. 04628_ W-44 Eye sends out distress signal. 04638_ U-05 Engineer lays Concrete. Map ----- +----------------------------------------------------+ | ???# " #??????????????? | | ???# # #??????????????? | | ???# # #??????????????? | | #### ##########+###+##+####??????? | | #??????? | | #??????? | | #??????? | | p +??????? | | s s #??????? | | ss #??????? | | s #??????? | | #### ##############ss #??????? | | ???# ?????????????# #??????? | | ???# ?????????????# #??????? | | ???# ?????????????# #??????? | | ???# ?????????????# #??????? | | ???# ?????????????# #??????? | | ???# ?????????????# #??????? | | ????? ?????????????# #??????? | | ???????? ??????????????# #??????? | | ????????????????????????# #??????? | | ????????????????????????# #??????? | | ????????????????????????# #??????? | | ????????????????????????# #??????? | | ????????????????????????# #??????? | | ????????????????????????#@ #??????? | | ????????????????????????# #??????? | | ????????????????????????# #??????? | | ????????????????????????# +??????? | | ????????????????????????# #??????? | | ????????????????????????# #??????? | | ????????????????????????# #??????? | | ????????????????????????# #??????? | | ????????????????????????# #??????? | | ????????????????????????? #??????? | | ????????????????????????? #######??????? | | ????????????????????????? ?????????????? | | ????????????????????????? ?????????????? | | ????????????????????????? ?????????????? | | ????????????????????????? ?????????????? | | ????????????????????????? ?????????????? | | ???????????????????????????????????????? | | ???????????????????????????????????????? | | ???????????????????????????????????????? | | ???????????????????????????????????????? | | ???????????????????????????????????????? | | ???????????????????????????????????????? | | ???????????????????????????????????????? | | ???????????????????????????????????????? | | | +----------------------------------------------------+ Best States ------------- Heat Dissipation 52 Energy Generation 29 Energy Capacity 340 Matter Stores 300 Matter Capacity 300 Sight Range 16 Robot Scan Range 10 Terrain Scan Range 16 Terrain Scan Density 210 ECM Strength 1 Jamming Range 12 Armor Coverage 225 Evasion (%) 64 Melee Accuracy 6 Core Analysis 10 Offensive Hacking 30 Item Schematics ----------------- Hacking Suite | -8/Materials | Hacked Imp. Core Analyzer | -5/Factory | Hacked Robot Schematics ------------------ None Fabricated ------------ Hacking Suite | x1 | -7/Factory Hacking Suite | x1 | -5/Factory Alien Tech Used ----------------- None Achievements -------------- Cya! Dangerous Findings Denied? Fist Fight Omniscient Cartographer Part-time Mechanic Party Time Streaker Challenges ------------ None Game ------ Seed BattleTrackerPit Manual? 0 Play Time 01:04:22 Cumulative 8.6 hours Start 2021.01.26 @ 18:58:27 End 2021.01.26 @ 20:00:32 Sessions 1 Manual Loads 0 Difficulty Rogue Special Mode None Game No. 13 Rogue 13 Adventurer 0 Explorer 0 Win Type - Total 0 Types 0/0/0/0/0/0/0/0/0 Lore% 27 Gallery% 24 Achievement% 23 Wizard Run 0 Options --------- ASCII 0 Keyboard 0 Movement Numpad Keybinds 0 Fullscreen 0 Font 20/Terminus Map View 76x50 Tactical HUD 1 Map Filters NONE Filters NONE Steam 1 RUN: 97b745f5-137d-4372-8d6b-7089e471f063